bitfinex-derivatives/quotes_ETHF0:USTF0_20230402
["timestamp","ask_amount","ask_price","bid_price","bid_amount"]
[1680469616162,0.1,1790.0,1789.9,1.47028973]
[1680469616751,1.56499995,1790.0,1789.9,1.47028973]
[1680469620861,2.25783396,1790.0,1789.9,1.47028973]
[1680469627070,0.79283401,1790.0,1789.9,1.47028973]
[1680469633170,1.56404973,1790.0,1789.9,4.67808973]
[1680469633573,2.25688374,1790.0,1789.9,4.67808973]
[1680469634168,2.25688374,1790.0,1789.9,1.47028973]
[1680469634379,0.79283401,1790.0,1789.9,1.47028973]
[1680469634576,0.1,1790.0,1789.9,1.47028973]
[1680469634967,0.79283401,1790.0,1789.9,1.47028973]
[1680469636070,4.00063401,1790.0,1789.9,1.47028973]
[1680469636270,0.79283401,1790.0,1789.9,1.47028973]
[1680469638280,1.56398116,1790.0,1789.9,1.47028973]
[1680469638478,2.25681517,1790.0,1789.9,1.47028973]
[1680469642775,1.56398116,1790.0,1789.9,1.47028973]
[1680469644581,0.1,1790.0,1789.9,4.67808973]
[1680469644983,1.56398116,1790.0,1789.9,4.67808973]
[1680469645384,1.27135026,1790.0,1789.9,4.67808973]
[1680469647496,1.27135026,1790.0,1789.9,4.67435439]
[1680469654700,0.97833854,1790.0,1789.9,6.08544203]
[1680469654896,0.97833854,1790.0,1789.9,5.25544203]
[1680469655091,1.56398116,1790.0,1789.9,1.46655439]
[1680469655291,0.1,1790.0,1789.9,0.62855439]
[1680469655491,1.56398116,1790.0,1789.8,0.838]
[1680469655688,1.17121612,1789.9,1789.8,0.838]
[1680469657405,1.17121612,1789.9,1789.8,0.831]
[1680469657607,1.17121612,1789.9,1789.8,1.831]
[1680469658402,0.87840012,1789.9,1789.8,3.24208764]
[1680469658600,0.58555389,1789.9,1789.8,3.53422343]
[1680469658907,0.58555389,1789.9,1789.8,4.1163782]
[1680469659205,0.58556548,1789.9,1789.8,3.53422343]
[1680469659408,0.58556548,1789.9,1789.8,3.24333376]
[1680469659606,0.58556548,1789.9,1789.8,4.11655719]
[1680469660507,0.58556548,1789.9,1789.8,3.53422343]
[1680469661804,0.58556548,1789.9,1789.8,2.53422343]
[1680469662007,0.87840012,1789.9,1789.8,2.01599376]
[1680469662309,0.87840012,1789.9,1789.8,1.43385945]
[1680469664398,0.87840012,1789.9,1789.8,2.01599376]
[1680469664804,0.87840012,1789.9,1789.8,1.43385945]
[1680469665013,0.87840012,1789.9,1789.8,2.01599376]
[1680469665707,0.87840012,1789.9,1789.8,1.43385945]
[1680469669604,0.87840012,1789.9,1789.8,3.01599376]
[1680469670210,0.87840012,1789.9,1789.8,3.85399376]
[1680469670410,1.46382741,1789.9,1789.8,3.85399376]
[1680469670814,1.46382741,1789.9,1789.8,9.45499376]
[1680469671215,0.58542729,1789.9,1789.8,9.45499376]
[1680469672113,1.46382741,1789.9,1789.8,8.89699376]
[1680469672317,0.87840012,1789.9,1789.8,2.29599376]
[1680469672618,0.87840012,1789.9,1789.8,1.71385945]
[1680469674209,0.87840012,1789.9,1789.8,2.29599376]
[1680469675008,0.87840012,1789.9,1789.8,1.71385945]
[1680469676223,1.27121612,1790.0,1789.8,1.71385945]
[1680469678123,1.27121612,1790.0,1789.8,2.29599376]
[1680469678721,1.17121612,1789.9,1789.8,1.71385945]
[1680469679314,1.17121612,1789.9,1789.8,2.29599376]
[1680469679824,1.17121612,1789.9,1789.8,1.71385945]
[1680469680827,1.27121612,1790.0,1789.8,2.29599376]
[1680469681028,0.87855243,1789.9,1789.8,2.29599376]
[1680469681831,1.27121612,1790.0,1789.8,2.29599376]
[1680469682029,1.17121612,1789.9,1789.8,2.29599376]
[1680469682432,1.27121612,1790.0,1789.8,3.29599376]
[1680469682630,1.27159274,1790.0,1789.9,1.11]
[1680469683019,1.27159274,1790.0,1789.9,1.71320772]
[1680469684422,0.1,1790.0,1789.9,1.71320772]
[1680469685835,1.271725,1790.0,1789.9,1.71320772]
[1680469686232,1.27181962,1790.0,1789.9,1.71320772]
[1680469686431,1.27181962,1790.0,1789.9,6.50314203]
[1680469686629,0.1,1790.0,1789.9,6.50314203]
[1680469687334,0.97874499,1790.0,1789.9,6.50314203]
[1680469687630,0.97874506,1790.0,1789.9,6.50314203]
[1680469687933,0.1,1790.0,1789.9,6.50314203]
[1680469688231,0.1,1790.0,1789.9,7.37636546]
[1680469688432,0.1,1790.0,1789.9,8.48536546]
[1680469689236,0.97879755,1790.0,1789.9,8.48536546]
[1680469689735,0.97879918,1790.0,1789.9,8.48536546]
[1680469689936,0.97879849,1790.0,1789.9,8.48536546]
[1680469690333,0.97879849,1790.0,1789.9,14.08636546]
[1680469690527,0.9788082,1790.0,1789.9,14.08636546]
[1680469691343,0.9788082,1790.0,1789.9,13.21314203]
[1680469695938,0.9788082,1790.0,1789.9,7.61214203]
[1680469696238,1.27181962,1790.0,1789.9,1.72020772]
[1680469696838,0.1,1790.0,1789.9,1.72020772]
[1680469697344,1.56398116,1790.0,1789.9,1.72020772]
[1680469700042,4.77178116,1790.0,1789.9,1.72020772]
[1680469700244,1.56398116,1790.0,1789.9,1.72020772]
[1680469702148,0.1,1790.0,1789.9,1.72020772]
[1680469703144,1.56398116,1790.0,1789.9,1.72020772]
[1680469703353,0.1,1790.0,1789.9,1.72020772]
[1680469703543,1.56398116,1790.0,1789.9,1.72020772]
[1680469703944,0.1,1790.0,1789.9,1.72020772]
[1680469704143,1.56398116,1790.0,1789.9,1.72020772]
[1680469704849,0.1,1790.0,1789.9,1.72020772]
[1680469705054,1.56398116,1790.0,1789.9,1.72020772]
[1680469705244,0.1,1790.0,1789.9,1.72020772]
[1680469707352,1.56398116,1790.0,1789.9,1.72020772]
[1680469707753,0.1,1790.0,1789.9,1.72020772]
[1680469707966,1.27170082,1790.0,1789.9,1.72020772]
[1680469709248,1.27170082,1790.0,1789.9,4.92800772]
[1680469710148,1.27170082,1790.0,1789.9,5.51014203]
[1680469710555,1.27170082,1790.0,1789.9,4.92800772]
[1680469718863,1.27170082,1790.0,1789.9,5.51014203]
[1680469719665,1.27170082,1790.0,1789.9,4.92800772]
[1680469719874,1.27170082,1790.0,1789.9,5.51014203]
[1680469720466,1.27170082,1790.0,1789.9,4.92800772]
[1680469720872,1.27170082,1790.0,1789.9,5.51014203]
[1680469727879,0.97877451,1790.0,1789.9,6.62714203]
[1680469728079,0.1,1790.0,1789.9,7.62714203]
[1680469730773,0.97875915,1790.0,1789.9,7.62714203]
[1680469730979,0.1,1790.0,1789.9,7.62714203]
[1680469732084,0.1,1790.0,1789.9,7.06714203]
[1680469740290,1.17170082,1790.1,1789.9,13.50314203]
[1680469740492,2.01221496,1790.4,1790.0,12.92087013]
[1680469740689,0.87865346,1790.2,1790.1,5.08084497]
[1680469740991,0.87865346,1790.2,1790.1,7.4261205]
[1680469741194,1.17154886,1790.2,1790.1,2.92735953]
[1680469741493,1.17154886,1790.2,1790.1,6.13515953]
[1680469742089,1.17154886,1790.2,1790.1,12.57115953]
[1680469742291,1.17154886,1790.3,1790.1,12.8621205]
[1680469742494,1.17154886,1790.3,1790.2,9.68601583]
[1680469742898,1.17154886,1790.3,1790.2,2.24801583]
[1680469744202,1.17154886,1790.3,1790.2,1.666]
[1680469744794,1.71978266,1790.4,1790.2,2.24801583]
[1680469744997,1.71978266,1790.4,1790.3,0.835]
[1680469752104,1.71978266,1790.4,1790.3,1.50841526]
[1680469755905,1.17154886,1790.5,1790.3,5.55321526]
[1680469756108,1.17154886,1790.6,1790.4,2.666]
[1680469756311,1.7306159,1790.6,1790.5,0.837]
[1680469756808,0.55906704,1790.6,1790.5,0.837]
[1680469757104,1.16956371,1790.6,1790.5,1.667]
[1680469757808,1.46398116,1790.7,1790.5,1.667]
[1680469758111,2.15655098,1790.7,1790.6,0.836]
[1680469758409,1.46398116,1790.7,1790.6,0.836]
[1680469758605,2.15653859,1790.7,1790.6,0.836]
[1680469758801,2.01841331,1790.7,1790.6,0.836]
[1680469759002,1.46398116,1790.7,1790.6,0.836]
[1680469759209,2.15654504,1790.7,1790.6,0.836]
[1680469759409,5.36434504,1790.7,1790.6,0.836]
[1680469761504,2.15654504,1790.7,1790.6,0.836]
[1680469762601,1.46398116,1790.7,1790.6,0.836]
[1680469763010,13.29698116,1790.7,1790.6,0.836]
[1680469763307,13.98954504,1790.7,1790.6,0.836]
[1680469763702,13.98954504,1790.7,1790.6,1.38886864]
[1680469763903,17.19734504,1790.7,1790.6,0.55286864]
[1680469764112,15.73336388,1790.7,1790.5,0.77771314]
[1680469764307,2.15430317,1790.6,1790.5,0.77771314]
[1680469766412,2.15430317,1790.6,1790.5,1.61171314]
[1680469767212,2.15430317,1790.6,1790.5,2.43909757]
[1680469770517,2.15430317,1790.6,1790.5,2.99073222]
[1680469773715,2.15430317,1790.6,1790.5,2.43909757]
[1680469774115,1.6733476,1790.9,1790.6,1.0]
[1680469774314,6.90798477,1791.0,1790.8,1.668]
[1680469774516,11.03914919,1791.0,1790.9,0.836]
[1680469774713,10.11578477,1791.0,1790.9,0.836]
[1680469774916,11.76212889,1791.0,1790.9,0.836]
[1680469775217,12.32152073,1791.0,1790.9,0.836]
[1680469775418,7.32152073,1791.0,1790.9,0.836]
[1680469775815,4.11372073,1791.0,1790.9,0.836]
[1680469776016,2.35573596,1791.0,1790.9,0.836]
[1680469778919,2.35573596,1791.0,1790.9,1.673]
[1680469779118,0.70939184,1791.0,1790.9,1.673]
[1680469780014,0.70939184,1791.0,1790.9,4.8808]
[1680469780416,1.64814691,1791.2,1791.0,1.834]
[1680469780626,1.75798477,1791.4,1791.2,0.837]
[1680469780812,1.75798477,1791.4,1791.3,1.666]
[1680469781320,1.75798477,1791.4,1791.3,2.63668127]
[1680469781920,3.4420333,1791.4,1791.3,2.63668127]
[1680469782121,3.4420333,1791.4,1791.3,2.08168127]
[1680469782323,1.68404853,1791.4,1791.3,2.08168127]
[1680469782619,3.75960788,1791.5,1791.3,2.08168127]
[1680469782813,3.75960788,1791.5,1791.4,1.109]
[1680469783219,3.75960788,1791.5,1791.4,2.16640323]
[1680469783720,2.22168941,1791.5,1791.4,2.16640323]
[1680469783922,4.96578477,1791.7,1791.5,1.116]
[1680469784123,5.52810434,1791.7,1791.6,1.109]
[1680469785416,0.56231957,1791.7,1791.6,3.225]
[1680469785616,4.96578477,1791.9,1791.6,3.225]
[1680469785824,7.23562734,1791.9,1791.8,2.222]
[1680469787225,5.47764257,1791.9,1791.8,2.222]
[1680469788028,2.26984257,1791.9,1791.8,2.222]
[1680469788218,1.85798477,1792.0,1791.8,2.222]
[1680469788419,1.85798477,1792.0,1791.9,1.116]
[1680469788618,2.42529966,1792.0,1791.9,1.11]
[1680469789218,2.37930153,1792.0,1791.9,1.11]
[1680469790723,2.37930153,1792.0,1791.8,1.11]
[1680469794024,2.37930153,1792.0,1791.8,0.95617837]
[1680469794224,1.45598707,1791.9,1791.8,0.95617837]
[1680469794644,4.66378707,1791.9,1791.5,1.111]
[1680469794927,3.2078,1791.7,1791.4,1.05740323]
[1680469795135,3.2078,1791.5,1791.3,1.111]
[1680469796029,3.2078,1791.5,1791.1,1.0]
[1680469796030,3.2078,1791.5,1791.4,1.11]
[1680469796236,4.66378707,1791.8,1791.4,1.11]
[1680469796537,4.66378707,1791.8,1791.5,1.115]
[1680469796733,3.2078,1791.6,1791.5,1.115]
[1680469797238,3.2078,1791.6,1791.5,2.06468714]
[1680469798543,4.66378707,1791.8,1791.5,2.06468714]
[1680469798745,3.2078,1791.6,1791.5,2.06468714]
[1680469800342,4.08087587,1791.6,1791.5,2.06468714]
[1680469800746,3.2078,1791.6,1791.5,2.06468714]
[1680469800935,4.08087642,1791.6,1791.5,2.06468714]
[1680469802246,4.08087642,1791.6,1791.5,2.05968714]
[1680469804151,4.08082515,1791.6,1791.5,2.05968714]
[1680469804351,4.08080236,1791.6,1791.5,2.05968714]
[1680469804550,3.2078,1791.6,1791.5,2.05968714]
[1680469804845,4.08080305,1791.6,1791.5,2.05968714]
[1680469805148,4.08079167,1791.6,1791.5,2.05968714]
[1680469805450,0.87299167,1791.6,1791.5,2.05968714]
[1680469806151,0.87299167,1791.7,1791.5,2.06468714]
[1680469806351,0.87299167,1791.7,1791.6,3.226]
[1680469806845,0.87299167,1791.7,1791.6,4.18611861]
[1680469807847,0.66731489,1792.0,1791.7,0.872]
[1680469808050,0.1,1792.0,1791.9,4.3228]
[1680469808451,0.1,1792.0,1791.9,1.115]
[1680469809246,0.1,1792.0,1791.9,2.115]
[1680469812056,0.1,1792.0,1791.9,3.227]
[1680469812247,0.4761031,1792.1,1792.0,6.018]
[1680469812446,1.65202813,1792.3,1792.0,11.4408]
[1680469812654,1.16333217,1792.4,1792.3,1.112]
[1680469812959,2.82701436,1792.4,1792.3,3.221]
[1680469813152,1.16333217,1792.4,1792.3,3.221]
[1680469813552,1.16333217,1792.4,1792.3,2.221]
[1680469813755,1.16333217,1792.4,1792.2,1.111]
[1680469814755,1.16333217,1792.4,1792.2,4.3188]
[1680469816660,1.16333217,1792.4,1792.2,1.111]
[1680469818263,1.16333217,1792.3,1792.2,1.111]
[1680469819355,1.16333217,1792.3,1792.0,1.108]
[1680469819963,4.37113217,1792.3,1792.0,1.108]
[1680469820162,4.37113217,1792.3,1791.8,1.114]
[1680469820163,4.37113217,1792.1,1791.8,1.114]
[1680469820365,1.16333217,1792.0,1791.8,1.114]
[1680469821867,1.16333217,1792.0,1791.6,5.90056994]
[1680469822166,3.2078,1791.9,1791.6,3.80776994]
[1680469822464,4.37113217,1791.9,1791.6,3.80776994]
[1680469823160,4.37113217,1791.9,1791.6,2.115]
[1680469823563,1.16333217,1791.9,1791.6,2.115]
[1680469824261,1.16333217,1791.9,1791.6,1.115]
[1680469824661,4.37113217,1791.9,1791.6,1.115]
[1680469825370,1.16333217,1791.8,1791.6,1.115]
[1680469825558,0.55545515,1792.1,1791.6,1.115]
[1680469825559,1.16559115,1792.0,1791.7,7.831]
[1680469825761,1.16559115,1792.2,1792.0,1.0]
[1680469826064,1.16543406,1792.2,1792.1,2.227]
[1680469826267,0.69201728,1792.4,1792.1,5.28101882]
[1680469826569,4.34115728,1792.5,1792.3,1.114]
[1680469826755,0.69200606,1792.4,1792.3,1.114]
[1680469828863,0.69200606,1792.4,1792.3,4.3218]
[1680469828864,2.14984012,1792.4,1792.3,4.3218]
[1680469829064,1.45783406,1792.4,1792.3,4.3218]
[1680469831273,1.45783406,1792.4,1792.3,1.114]
[1680469831573,1.45783406,1792.4,1792.3,4.3218]
[1680469833470,1.45783406,1792.4,1792.3,5.5261767]
[1680469836674,1.45783406,1792.5,1792.3,5.5261767]
[1680469836877,2.14977956,1792.5,1792.4,1.108]
[1680469837970,2.14977956,1792.5,1792.4,2.108]
[1680469838375,2.14977956,1792.5,1792.4,1.108]
[1680469838671,2.14977956,1792.5,1792.4,1.115]
[1680469842079,2.14977956,1792.5,1792.4,1.108]
[1680469842281,2.14977956,1792.5,1792.4,2.108]
[1680469842480,2.14977956,1792.5,1792.4,1.115]
[1680469843376,2.14977956,1792.5,1792.4,2.115]
[1680469843976,2.14977956,1792.5,1792.4,1.115]
[1680469844376,0.6919455,1792.5,1792.4,1.115]
[1680469845185,0.6919455,1792.5,1792.4,2.115]
[1680469845773,0.6919455,1792.5,1792.4,1.115]
[1680469846479,0.6919455,1792.5,1792.4,2.115]
[1680469846678,0.6919455,1792.5,1792.4,1.115]
[1680469846983,0.6919455,1792.5,1792.4,2.115]
[1680469847878,2.14990298,1792.5,1792.4,2.115]
[1680469848479,2.14990298,1792.5,1792.4,3.31895071]
[1680469849287,0.6919455,1792.5,1792.4,3.31895071]
[1680469852087,0.6919455,1792.5,1792.4,1.20395071]
[1680469852590,0.6919455,1792.5,1792.4,1.115]
[1680469852787,0.6919455,1792.5,1792.4,2.115]
[1680469853387,0.6919455,1792.5,1792.4,1.115]
[1680469856294,0.6919455,1792.5,1792.4,1.00350001]
[1680469860292,0.6919455,1792.5,1792.4,2.00350001]
[1680469860492,0.6919455,1792.5,1792.4,1.00350001]
[1680469862691,1.17327848,1792.6,1792.4,8.71950001]
[1680469862891,0.00547824,1792.6,1792.5,5.3168]
[1680469863599,0.00547824,1792.6,1792.5,6.6915172]
[1680469863993,1.1732573,1792.6,1792.5,6.6915172]
[1680469864394,0.00547824,1792.6,1792.5,5.6915172]
[1680469867793,0.88071971,1792.6,1792.5,5.6915172]
[1680469869092,1.46403927,1792.6,1792.5,5.6915172]
[1680469869495,0.88071971,1792.6,1792.5,5.6915172]
[1680469871502,0.00547824,1792.6,1792.5,6.6915172]
[1680469871704,0.88114126,1792.6,1792.5,6.6915172]
[1680469872407,0.88113956,1792.6,1792.5,6.6915172]
[1680469872706,2.04891862,1792.6,1792.5,5.6915172]
[1680469873500,1.75674821,1792.6,1792.5,5.6915172]
[1680469874098,1.75673279,1792.6,1792.5,5.6915172]
[1680469874308,1.75673279,1792.6,1792.5,6.6915172]
[1680469874703,0.15,1793.0,1792.6,1.0]
[1680469874903,0.6917525,1792.9,1792.8,4.3198]
[1680469875105,0.6917525,1792.9,1792.8,5.4348]
[1680469878599,0.6917525,1792.9,1792.8,6.80869579]
[1680469880511,0.6917525,1792.9,1792.8,5.69669579]
[1680469881210,0.6917525,1792.9,1792.8,2.48889579]
[1680469882812,1.45854052,1792.9,1792.8,5.69669579]
[1680469884915,2.17574204,1793.0,1792.8,5.69669579]
[1680469885211,0.71720152,1793.0,1792.9,2.115]
[1680469886412,0.15,1793.0,1792.9,2.115]
[1680469888408,0.15,1793.0,1792.9,1.115]
[1680469889114,0.15,1793.0,1792.9,2.115]
[1680469889320,0.15,1793.0,1792.9,3.221]
[1680469890813,0.15,1793.0,1792.9,2.221]
[1680469892016,0.15,1793.0,1792.9,1.106]
[1680469893616,0.15,1793.0,1792.9,2.61084936]
[1680469893806,0.15,1793.0,1792.9,1.106]
[1680469896719,1.60854052,1793.0,1792.9,1.106]
[1680469898921,0.15,1793.0,1792.9,2.106]
[1680469899119,0.15,1793.0,1792.9,1.106]
[1680469900819,1.60854052,1793.0,1792.9,1.106]
[1680469902422,2.30023386,1793.0,1792.9,1.106]
[1680469903526,1.60854052,1793.0,1792.9,1.106]
[1680469903923,2.30021775,1793.0,1792.9,1.106]
[1680469904226,2.30021744,1793.0,1792.9,1.106]
[1680469904416,0.84167762,1793.0,1792.9,1.106]
[1680469904621,2.30239834,1793.0,1792.9,1.106]
[1680469904828,2.30239834,1793.0,1792.9,2.106]
[1680469905229,1.61072072,1793.0,1792.9,2.106]
[1680469905828,2.30237853,1793.0,1792.9,1.106]
[1680469908533,2.30237853,1793.0,1792.9,2.47798334]
[1680469910729,0.84165781,1793.0,1792.9,2.47798334]
[1680469914841,1.95665781,1793.0,1792.5,1.58201583]
[1680469915037,1.16900455,1792.6,1792.4,1.0]
[1680469915243,1.16900455,1792.5,1792.4,2.11]
[1680469915445,1.16900455,1792.5,1792.4,1.11]
[1680469916146,1.46125569,1792.5,1792.4,1.11]
[1680469917236,2.15309649,1792.5,1792.4,1.11]
[1680469917441,1.46125569,1792.5,1792.4,1.11]
[1680469919249,4.66905569,1792.6,1792.4,1.11]
[1680469919449,1.46125569,1792.5,1792.4,1.11]
[1680469920250,5.21802567,1792.6,1792.4,1.11]
[1680469920548,1.46125569,1792.5,1792.4,1.11]
[1680469920948,1.46125569,1792.5,1792.2,3.2078]
[1680469921148,1.16838478,1792.4,1792.2,3.2078]
[1680469922150,1.16838478,1792.4,1792.3,1.115]
[1680469922752,1.16838478,1792.4,1792.3,2.06661278]
[1680469925650,2.16838478,1792.4,1792.3,0.95161278]
[1680469925843,3.2078,1792.4,1792.1,1.115]
[1680469926049,1.16772438,1792.3,1792.2,0.71373905]
[1680469926254,1.16772438,1792.3,1792.1,1.115]
[1680469927650,0.58361429,1792.2,1792.1,1.115]
[1680469930048,3.28272438,1792.3,1791.7,1.69001583]
[1680469930253,0.5834523,1792.0,1791.6,4.3228]
[1680469930551,0.5834523,1791.9,1791.6,4.3228]
[1680469931658,3.7912523,1792.0,1791.6,4.3228]
[1680469932766,3.7912523,1792.0,1791.7,1.108]
[1680469932952,3.7912523,1792.0,1791.7,2.108]
[1680469933557,3.2078,1792.0,1791.7,2.108]
[1680469935765,3.2078,1792.0,1791.7,1.108]
[1680469937661,3.2078,1791.8,1791.7,1.108]
[1680469938565,3.2078,1791.8,1791.7,1.48113901]
[1680469938963,3.7912523,1792.0,1791.7,1.48113901]
[1680469940369,3.2078,1792.0,1791.7,1.48113901]
[1680469941073,3.7912523,1792.0,1791.7,1.48113901]
[1680469941370,3.2078,1792.0,1791.7,1.48113901]
[1680469949276,3.7912523,1792.0,1791.7,1.48113901]
[1680469951179,4.9062523,1792.0,1791.7,0.37313901]
[1680469951380,4.9042523,1792.0,1791.7,0.37313901]
[1680469951580,4.9042523,1792.0,1791.5,4.3238]
[1680469952187,3.7912523,1792.0,1791.6,1.116]
[1680469953382,0.5834523,1791.9,1791.6,1.116]
[1680469953583,0.5834523,1791.9,1791.7,0.3726994]
[1680469953879,0.5834523,1791.9,1791.6,1.116]
[1680469954077,1.6924523,1791.9,1791.5,3.2078]
[1680469955278,1.6924523,1791.9,1791.4,1.116]
[1680469955476,3.2078,1791.8,1791.4,1.116]
[1680469955988,3.2078,1791.6,1791.4,1.116]
[1680469957187,3.7912523,1791.8,1791.4,1.116]
[1680469959286,0.5834523,1791.7,1791.4,1.116]
[1680469961388,0.5834523,1791.7,1791.4,1.69801583]
[1680469965285,0.5834523,1791.6,1791.4,1.69801583]
[1680469966478,0.5834523,1791.7,1791.4,2.69801583]
[1680469967284,0.5834523,1791.7,1791.4,3.5710608]
[1680469967886,0.5834523,1791.7,1791.4,2.69801583]
[1680469968590,0.5834523,1791.7,1791.5,0.33239246]
[1680469968891,0.5834523,1791.7,1791.5,1.33239246]
[1680469969082,0.5834523,1791.7,1791.6,1.116]
[1680469969299,0.5834523,1791.7,1791.6,2.232]
[1680469969489,1.45761126,1791.7,1791.6,2.232]
[1680469969686,0.5834523,1791.7,1791.6,2.232]
[1680469970786,1.45761126,1791.7,1791.5,2.02240829]
[1680469971085,0.58450373,1791.6,1791.5,2.02240829]
[1680469973689,0.87415896,1791.6,1791.5,2.02240829]
[1680469974184,0.87415896,1791.6,1791.5,0.91440829]
[1680469974391,3.26942412,1791.6,1791.2,0.58109677]
[1680469974585,1.17018024,1791.4,1791.3,0.12996068]
[1680469975085,1.17018024,1791.4,1791.2,1.0]
[1680469975289,0.87701828,1791.3,1791.1,1.69109677]
[1680469975489,0.5846836,1791.2,1791.1,1.69109677]
[1680469977685,1.46170188,1791.3,1791.1,1.11]
[1680469979091,1.46170188,1791.3,1791.1,1.69109677]
[1680469979592,0.5846836,1791.3,1791.1,1.11]
[1680469980396,0.5846836,1791.3,1791.2,1.116]
[1680469980991,0.5846836,1791.3,1791.2,2.116]
[1680469981191,0.5846836,1791.4,1791.2,2.116]
[1680469981390,0.5846836,1791.4,1791.3,4.3218]
[1680469981793,1.46170188,1791.5,1791.3,4.45606132]
[1680469981994,1.46170188,1791.5,1791.4,2.108]
[1680469982589,1.46170188,1791.6,1791.4,2.108]
[1680469982789,1.46170188,1791.6,1791.5,1.116]
[1680469983296,0.87701828,1791.6,1791.5,1.116]
[1680469983796,1.46124942,1791.6,1791.5,1.116]
[1680469983990,0.87701828,1791.6,1791.5,1.116]
[1680469984196,1.46124967,1791.6,1791.5,1.116]
[1680469984494,1.46124942,1791.6,1791.5,1.116]
[1680469985296,1.46124907,1791.6,1791.5,1.116]
[1680469986590,0.58423079,1791.6,1791.5,1.116]
[1680469986796,1.46124907,1791.6,1791.5,1.116]
[1680469987298,0.58423079,1791.6,1791.5,1.116]
[1680469989902,1.46124907,1791.6,1791.5,1.116]
[1680469991201,0.58423079,1791.6,1791.5,1.116]
[1680469991398,0.58423079,1791.6,1791.5,5.4398]
[1680469991703,1.46124907,1791.7,1791.5,5.4398]
[1680469991898,0.58427969,1791.7,1791.6,2.115]
[1680469995003,0.58427969,1791.7,1791.6,1.115]
[1680469998807,0.58427969,1791.7,1791.6,1.24876568]
[1680469999302,0.58427969,1791.7,1791.6,2.24876568]
[1680470001102,1.46129797,1791.7,1791.6,0.13376568]
[1680470001303,0.87701828,1791.7,1791.6,0.13376568]
[1680470001900,1.17018024,1791.7,1791.6,0.13376568]
[1680470002105,1.17018024,1791.7,1791.3,3.78889677]
[1680470002106,2.17018024,1791.7,1791.3,3.78889677]
[1680470002304,1.46125956,1791.5,1791.3,3.78889677]
[1680470003307,0.58450382,1791.4,1791.3,3.2078]
[1680470005302,0.58450382,1791.4,1791.2,1.69509677]
[1680470012017,0.58450382,1791.4,1791.3,1.114]
[1680470013303,1.46125956,1791.5,1791.3,1.114]
[1680470013509,0.58450382,1791.6,1791.4,2.109]
[1680470013712,1.46125956,1791.6,1791.5,2.111]
[1680470013911,0.58450382,1791.6,1791.5,2.111]
[1680470014710,0.87675574,1791.6,1791.5,2.111]
[1680470014919,1.46118974,1791.6,1791.5,2.111]
[1680470015523,0.87675574,1791.6,1791.5,2.111]
[1680470015915,1.46123115,1791.6,1791.5,2.111]
[1680470016321,1.461231,1791.6,1791.5,2.111]
[1680470016522,0.87675574,1791.6,1791.5,2.111]
[1680470018619,0.58449966,1791.6,1791.5,3.225]
[1680470019118,1.4612554,1791.6,1791.5,3.225]
[1680470019319,0.58449966,1791.6,1791.5,3.225]
[1680470019719,1.4612554,1791.6,1791.5,3.225]
[1680470019925,0.58449966,1791.6,1791.5,3.225]
[1680470021325,0.58449966,1791.6,1791.5,6.4328]
[1680470022028,1.4612554,1791.6,1791.5,3.225]
[1680470022529,1.4612554,1791.6,1791.5,6.4328]
[1680470023026,0.58449966,1791.6,1791.5,6.4328]
[1680470023723,0.87675574,1791.6,1791.5,6.4328]
[1680470024425,1.46152035,1791.6,1791.5,6.4328]
[1680470024622,0.87675574,1791.6,1791.5,6.4328]
[1680470025831,0.87675574,1791.6,1791.5,7.01389677]
[1680470026333,0.58493465,1791.6,1791.5,7.01389677]
[1680470026532,1.46169039,1791.6,1791.5,7.01389677]
[1680470026826,0.58493465,1791.6,1791.5,7.88554193]
[1680470027027,0.58493465,1791.6,1791.5,7.30444516]
[1680470027625,1.46169039,1791.7,1791.5,7.30444516]
[1680470027921,1.46169039,1791.7,1791.6,1.69190557]
[1680470028423,0.58493465,1791.7,1791.6,1.80622863]
[1680470031430,0.58493465,1791.7,1791.6,2.91422863]
[1680470034932,0.87675574,1791.8,1791.7,1.0]
[1680470035133,0.87675574,1791.8,1791.7,5.3188]
[1680470035732,0.87675574,1791.8,1791.7,1.111]
[1680470036031,0.87675574,1791.8,1791.7,4.3188]
[1680470036233,0.87675574,1791.8,1791.7,1.111]
[1680470037036,0.87675574,1791.8,1791.6,0.69522863]
[1680470037338,0.87675574,1791.7,1791.6,1.22332306]
[1680470037535,1.17018024,1791.8,1791.6,0.11432306]
[1680470037738,1.17018024,1791.7,1791.6,0.11432306]
[1680470038226,3.26843164,1791.7,1791.3,0.58090557]
[1680470038428,0.87713794,1791.4,1791.2,1.58090557]
[1680470038633,0.87713794,1791.3,1791.2,1.0]
[1680470038832,4.08493794,1791.4,1791.2,1.0]
[1680470039229,0.87713794,1791.4,1791.2,1.111]
[1680470039432,0.87713794,1791.4,1791.3,1.0]
[1680470041737,0.87713794,1791.4,1791.3,2.116]
[1680470041939,0.87713794,1791.5,1791.3,2.116]
[1680470042137,0.87713794,1791.5,1791.4,1.111]
[1680470042438,0.87713794,1791.5,1791.4,4.3188]
[1680470043027,0.87713794,1791.6,1791.4,4.3188]
[1680470043232,0.87713794,1791.6,1791.5,1.0]
[1680470045741,0.87713794,1791.6,1791.5,1.07573513]
[1680470050943,0.87713794,1791.6,1791.5,0.07573513]
[1680470051444,4.08493794,1791.6,1791.5,0.07573513]
[1680470051646,4.08493794,1791.6,1791.3,0.58090557]
[1680470052244,0.87713794,1791.5,1791.2,5.77635073]
[1680470058448,0.87713794,1791.5,1791.3,0.07575806]
[1680470058949,0.87713794,1791.4,1791.3,0.07575806]
[1680470062752,0.87713794,1791.5,1791.3,0.07575806]
[1680470069144,0.87713794,1791.5,1791.4,1.116]
[1680470073546,0.93328321,1791.5,1791.4,1.116]
[1680470078758,2.10280046,1791.5,1791.4,1.116]
[1680470079057,1.22566252,1791.5,1791.4,1.116]
[1680470082859,0.05614527,1791.5,1791.4,1.116]
[1680470087562,1.51740096,1791.5,1791.4,1.116]
[1680470088558,1.59871704,1791.5,1791.4,1.116]
[1680470089365,0.13746135,1791.5,1791.4,1.116]
[1680470090965,1.59871704,1791.5,1791.4,1.116]
[1680470091558,1.59871704,1791.5,1791.3,0.58090557]
[1680470091961,1.17092791,1791.4,1791.3,0.58090557]